{"text_format":"3","workbook":"xlsx","n_sheets":2,"sheets":["Cover PageFLASH DRIVE BQ CL 133","SDS-PH14-DALALA"],"not_rendered":{"images":1,"external_links":1,"defined_names":2,"comments":1},"read":"whole","date_system":"1900"}

{"sheet":"Cover PageFLASH DRIVE BQ CL 133","index":0,"n_rows":46,"n_cols":4,"rows_kept":46,"merged":[[0,0,0,3],[1,0,1,3],[8,0,8,3],[9,0,9,3],[11,0,11,3],[13,0,13,3],[14,0,14,3],[15,0,15,3],[18,0,18,3],[19,0,19,3],[20,0,20,1],[20,2,20,3],[21,0,21,1],[21,2,21,3],[22,0,22,1],[22,2,22,3],[23,0,23,1],[24,0,24,1],[24,2,24,3],[25,0,25,1],[25,2,25,3],[26,0,26,1],[26,2,26,3],[27,0,27,1],[27,2,27,3],[28,0,28,1],[28,2,28,3],[30,2,30,3],[31,2,31,3],[32,2,32,3],[33,2,33,3],[34,2,34,3],[35,2,35,3],[43,1,43,3],[44,1,44,3],[45,2,45,3]]}
["PROVINCIAL ADMINISTRATION OF KWAZULU-NATAL"]
["DEPARTMENT OF PUBLIC WORKS"]
[{"$nulls":3}," "]
[]
[]
[]
[]
[]
[]
["BILLS OF QUANTITIES"]
[]
["with GCC for Construction Works - Second Edition 2010"]
[]
["RETURNABLE DOCUMENT"]
["FLASH DRIVE"]
["PHASE 14: STORM DAMAGED PROGRAMME: REPAIRS AND RENOVATIONS TO STORM DAMAGED SCHOOLS THROUGHOUT THE PROVINCE OF KWAZULU-NATAL: MIDLANDS REGION: CLUSTER 133: DALALA PRIMARY SCHOOL - OPEN BIDS."]
["SCHOOL NAME","WIMS NO.","CONTRACT PERIOD","TYPE OF CONTRACT"]
["DALALA PRIMARY SCHOOL","063803","12 CALENDAR MONTHS","OPEN"]
[]
[]
["Engineer/Principal Agent",null,"Principal Agent/Programme Manager"]
["VNA Consulting (Pty) Ltd        ",null,"VNA Consulting (Pty) Ltd        "]
["P.O Box 70803",null,"P.O Box 70803"]
["Overport",null,{"$f":"A24","v":"Overport"}]
["Durban",null,"Durban"]
[4067,null,4067]
["031 -700 2500 - Tel Number",null,"031 - 700 2500 - Tel Number"]
["031 - 940 4243 - Fax Number",null,"031 - 940 4243 - Fax Number"]
["anisa.vaid@vnac.co.za",null,"anisa.vaid@vnac.co.za"]
[]
["Employer:",null,"Region:"]
["Head: Public Works",null,"Head Public Works: Operations"]
["KZN Department of Public Works",null,"KZN Department of Public Works"]
["Private Bag X 9041",null,{"$f":"A34","v":"Private Bag X 9041"}]
["Pietermaritzburg",null,"Pietermaritzburg"]
[3200,null,"3200"]
["Tel Number:     033 - 355 5569",null,"Tel Number:","033 - 355 5569"]
["Fax Number:    N/A",null,"Fax Number:","N/A"]
[]
["Bid Number:           ZNTL04781W",null,"Project Code:","063803"]
["CIDB Grading         5GB or higher",null,"Document Date:","As per Tender Advert"]
["ECDP Number:        N/A",null,"Contract Period:","12 Calendar Months"]
[]
["Bidding Entity: "]
["CIDB Registration number:"]
["Central Suppliers Database Registration Number: "]

{"sheet":"SDS-PH14-DALALA","index":1,"n_rows":1305,"n_cols":6,"rows_kept":1305,"merged":[[0,0,0,5],[1,0,1,1],[1,3,1,4],[2,0,2,1],[2,3,2,4],[3,0,3,1],[3,2,3,5],[4,0,4,5],[1257,1,1257,4],[1264,1,1264,4],[1274,1,1274,4]]}
["PHASE 14: STORM DAMAGED PROGRAMME: REPAIRS AND RENOVATIONS TO STORM DAMAGED SCHOOLS THROUGHOUT THE PROVINCE OF KWAZULU-NATAL: MIDLANDS REGION: CLUSTER 133: DALALA PRIMARY SCHOOL - OPEN BIDS."]
["SCHOOL NAME",null,"WIMS NO.","CONTRACT PERIOD",null,"TYPE OF CONTRACT"]
[{"$f":"'Cover PageFLASH DRIVE BQ CL 133'!A18","v":"DALALA PRIMARY SCHOOL"},null,{"$f":"'Cover PageFLASH DRIVE BQ CL 133'!B18","v":"063803"},{"$f":"'Cover PageFLASH DRIVE BQ CL 133'!C18","v":"12 CALENDAR MONTHS"},null,"OPEN TENDER"]
[{"$f":"'[1]Cover PageFLASH DRIVE BQ CL 127'!A44","v":"Bidding Entity: "},null,{"$f":"'Cover PageFLASH DRIVE BQ CL 133'!B44","v":0}]
["BIDDERS TO NOTE THAT ALL FIELDS HIGHLIGTHED IN YELLOW TO BE FILLED IN ONLY"]
["ITEM NO","DESCRIPTION","UNIT","QUANTITY","RATE","AMOUNT"]
[]
[null,"SECTION 1"]
[null,"BILL NO. 1 PRELIMINARIES AND GENERAL (PROVISIONAL)"]
[]
[null,"See C2.2 - Preliminaries for GCC for Construction works - 2nd Edition (2010)"]
[]
[1,"Preliminaries","SUM",1,null,{"$f":"D13*E13","v":0}]
[null,"Total for Section No. 1: Bill No. 1",{"$nulls":3},{"$f":"SUM(F13)","v":0}]
[]
[null,"SECTION 2"]
[null,"BILL NO. 1 : ALTERATIONS"]
[]
[null,"(CPAP WORK GROUP 102 UNLESS OTHERWISE STATED)."]
[]
[null,"For Preambles refer to the relevant Clauses in the ASAQS Model Preambles for Trades 2008 and Supplementary Preambles which is incorporated in these Bills of Quantities."]
[]
[null,"SUPPLEMENTARY PREAMBLES"]
[]
[null,"NOTE:"]
[]
[null,"Rates are to include for removal of all items unless otherwise described."]
[]
[null,"View site"]
[]
[null,"Before submitting his tender the contractor shall visit the site and satisfy himself as to the nature and extent of the work to be done and the value of the materials contained in the buildings or portions of the buildings to be demolished.  No claim for any variations of the contract sum in respect of the nature and extent of the work or of inferior or damaged materials will be entertained."]
[]
[null,"Work and materials"]
[]
[null,"The work to be done and the materials to be used in the works on site are to be similar to those specified in the new work so as they apply."]
[]
[null,"Old materials"]
[]
[null,"Old materials specified to be handed over are to be carefully made good and stored on the site where directed."]
[]
[null,"Old materials to be carted away"]
[]
[null,"Old materials from alterations except where described to be re-used or handed over, as well as rubbish, etc. must be regularly carted from the site and not be allowed to accumulate on or around the site."]
[]
[null,"Demolitions"]
[]
[null,"The items shall be reserved and remain the property of the employer and will be removed from the building by the contractor and handed over to the employer prior to the commencement of the demolitions. Should the tenderer have doubts concerning any of these items he shall seek clarification from the Principal Agent."]
[]
[null,"Leave site clean and free of rubbish"]
[]
[null,"The contractor shall progressively during the works and at completion collect and cart away all materials and debris resulting from the demolitions and also all earth, soil and rubbish."]
[]
[null,"Block Notation"]
[]
[null,"Note: For the purpose of tendering only the total quantity shall be used in calculating the amount for inclusion in the tender at the tendered rates.\nBlock A : Admin Block and Classrooms\nBlock B : 7 Classroom Block\nBlock C :7 Classroom Block\nBlock D : Guard house                            "]
[]
[null,"General"]
[]
[null,"The contractor shall carry out the whole of the works with as little mess and noise as possible and with a minimum of disturbance to adjoining premises and their tenants.  He shall provide proper protection and provide, erect and remove when directed, any temporary tarpaulins that may be necessary during the progress of the works, all to the satisfaction of the principal agent"]
[]
[null,"Water supply pipes and other piping that may be encountered and found necessary to disconnect or cut, shall be effectually stopped off or grubbed up and removed, and any new connections that may be necessary shall be made with proper fittings, to the satisfaction of the principal agent."]
[]
[null,"Doors, fanlights, fittings, frames, linings, etc. which are to be re-used shall be thoroughly overhauled before refixing including taking off, easing and rehanging, cramping up, re-wedging as required and making good cramps, dowels, etc., and easing, oiling, adjusting and repairing ironmongery as necessary, replacing any glass damaged in removal or subsequently and stopping up all nail and screw holes with tinted plastic wood to match timber, unless otherwise described. Re-painting or re-varnishing is given separately."]
[]
[null,"Prices for taking out of doors, windows, etc. shall include for removal of all beads, architraves, ironmongery, etc."]
[]
[null,"Prices for taking out and removing doors and frames shall include for removing door stops, cabin hooks, etc. and making good floor and wall finishes to match existing."]
[]
[null,"With regard to building up of openings in existing walls, cement screeds and pavings, granolithic, tops of walls, etc., shall be levelled and prepared for raising of brickwork."]
[]
[null,"Making good of finishes shall include making good of the brick and concrete surfaces onto which the new finishes are applied, where necessary."]
[]
[null,"The contractor will be held responsible for any damage to persons and property and for the safety of the structures and he is to allow for protecting and indemnifying persons using the existing buildings from injury by virtue of the building operations, including providing necessary barriers, signs, etc."]
[]
[null,"The contractor will be required to take all dimensions affecting the existing buildings on the site and he will be held solely responsible for the accuracy of all such dimensions where used in the manufacture of new items (doors, windows, fittings, etc.)."]
[]
[null,"Rates are deemed to include cart away and/or disposal at an approved dump site."]
[]
[null,"Hoarding, etc.:"]
[]
[1,"Shade cloth hoarding 1.8m high above  natural ground level, including 300mm x 300mm x 300mm deep base, including 15Mpa/19mm mass concrete bases, excavation, backfilling etc., fixed to intermediate post at 3m centres.","m",144,null,{"$f":"D81*E81","v":0}]
[]
[null,"REMOVAL OF EXISTING WORK."]
[]
[null,"Breaking, removing and carting away:"]
[]
[2,"2450 x 2450 x 1000mm deep water tank stand. ","No",3,null,{"$f":"D87*E87","v":0}]
[]
[3,"100mm Thick unreinforced concrete surface beds, paving, etc.","m2",{"$f":"373+162","v":535},null,{"$f":"D89*E89","v":0}]
[]
[4,"Unreinforced concrete steps.","m3",1,null,{"$f":"D91*E91","v":0}]
[]
[null,"Removal of existing material under slab:"]
[]
[5,"Excavate and cart away 150mm thick material under slab.","m3",12,null,{"$f":"D95*E95","v":0}]
[]
[null,"Breaking down and removing brickwork, etc.:"]
[]
[6,"One block walls.","m2",52,null,{"$f":"D99*E99","v":0}]
[]
[null,"Taking out and removing doors and steel frames:"]
[]
[7,"Timber single door 813 x 2032mm high overall and steel frame from one brick wall.","No",9,null,{"$f":"D103*E103","v":0}]
[]
[null,"Taking out and removing doors from existing frames:"]
[]
[8,"Timber single door 813 x 2032mm high overall.","No",14,null,{"$f":"D107*E107","v":0}]
[]
[null,"Taking down and removing roofs, floors, panelling, ceilings, partitions, etc.:"]
[]
[9,"Timber trusses and existing fittings.","No ",4,null,{"$f":"D111*E111","v":0}]
[]
[10,"Cut back existing trusses to walkway and prepare for splicing.","m",62,null,{"$f":"D113*E113","v":0}]
[]
[11,"Timber beam.","m",109,null,{"$f":"D115*E115","v":0}]
[]
[12,"Corrugated metal roof sheeting including ridge capping, purlins, battens, polyclosers, etc.","m2",8,null,{"$f":"D117*E117","v":0}]
[]
[13,"Fibre-cement ceilings including cornices, timber brandering, etc.","m2",75,null,{"$f":"D119*E119","v":0}]
[]
[14,"Remove existing roof screws.","No",2940,null,{"$f":"D121*E121","v":0}]
[]
[15,"Fibre cement barge boards including all fittings.","m",49,null,{"$f":"D123*E123","v":0}]
[]
[16,"Fibre cement fascia boards including all fittings.","m",191,null,{"$f":"D125*E125","v":0}]
[]
[17,"Gutters including fittings.","m",191,null,{"$f":"D127*E127","v":0}]
[]
[18,"Downpipes including fittings.","m",30,null,{"$f":"D129*E129","v":0}]
[]
[19,"Existing chalk boards.","No",10,null,{"$f":"D131*E131","v":0}]
[]
[20,"Existing pinning boards.","No",4,null,{"$f":"D133*E133","v":0}]
[]
[21,"Steel posts to walkways.","No",2,null,{"$f":"D135*E135","v":0}]
[]
[22,"Existing steel burglar gates.","No ",2,null,{"$f":"D137*E137","v":0}]
[]
[null,"Taking out/off and removing glass and mirrors."]
[]
[23,"Glass from steel windows, including cleaning out rebates and preparing for new glass (new glass elsewhere measured).","m2",28,null,{"$f":"D141*E141","v":0}]
[]
[null,"Break down and remove brickwork and make good to wall and floor:"]
[]
[24,"One brick/block wall to walkway.","m2",12,null,{"$f":"D145*E145","v":0}]
[]
[25,"Header course for brick wall.","m",8,null,{"$f":"D147*E147","v":0}]
[]
[null,"Taking out and removing brickwork:"]
[]
[26,"One brick wall in beamfilling.","m2",6,null,{"$f":"D151*E151","v":0}]
[]
[null,"Structural Repairs."]
[]
[null,"Brick/Block stitching:"]
[]
[27,"Hack off existing plaster, a minimum of 400mm of both sides of the crack. Cut into existing mortar lines, 400mm on both sides of the crack. Place one Y8mm diameter bar, 800mm long, centred on the crack and caulk in with fresh mortar in every course to the full extent of the crack. Finish off by plastering and painting.","m",32,null,{"$f":"D157*E157","v":0}]
[]
[null,"Hacking up/off and removing granolithic, screeds, plaster etc. from concrete or brickwork and preparing surfaces for new screeds, plaster, etc.:"]
[]
[28,"Plaster from walls in patches.","m2",21,null,{"$f":"D161*E161","v":0}]
[]
[29,"Average 25mm screed.","m2",532,null,{"$f":"D163*E163","v":0}]
[]
[30,"Average 25mm screed from floors in patches.","m2",43,null,{"$f":"D165*E165","v":0}]
[]
[null,"TEMPORARY PARKHOMES"]
[]
[null,"Note: Rates for park homes to include standard windows, burglar bars, curtains and tracks, two tier steps for access, lighting fittings and black boards size: 1200 x 4800mm."]
[]
[null,"M-Projects or other approved temporary park home units:"]
[]
[31,"Provide standard classroom size minimum 7 x 7m or nearest size temporary park homes on site for temporary educational facilities during the construction phase as herewith measured for 12 months, including levelling, two tier steps,  positioning on site and connections to an electrical supply. NOTE - The tenderer rate should be inclusive of the rental of units for 12  months.","No",7,null,{"$f":"D173*E173","v":0}]
[]
[32,"Provision of electrical compliance certificates for park homes.","No",7,null,{"$f":"D175*E175","v":0}]
[]
[33,"Transport to and from site of park homes as per distance between supplier and site.","No",7,null,{"$f":"D177*E177","v":0}]
[]
[null,"Desludging septic tank by a specialist including disposal:"]
[]
[34,"Septic tank overall size 1000 x 1000 x 1000mm.","m3",84,null,{"$f":"D181*E181","v":0}]
[]
[35,"Demolish portion of block B size: 32m x 9,2m including roof, trusses, foundations etc.","Item",1,null,{"$f":"D183*E183","v":0}]
[]
[]
[null,"Total for Section 2: Bill No. 1",{"$nulls":3},{"$f":"SUM(F81:F184)","v":0}]
[]
[null,"BILL NO.2 : EARTHWORKS (PROVISIONAL)"]
[]
[null,"SUPPLEMENTARY PREAMBLES"]
[]
[null,"Nature of ground:"]
[]
[null,"The nature of the ground is assumed to be loose sandy material, therefore earth, but possibly interspersed with hard rock or soft rock."]
[]
[null,"Carting away of excavated material:"]
[]
[null,"Descriptions of carting away of excavated material shall be deemed to include loading excavated material onto trucks directly from the excavations or, alternatively, from stock piles situated on the building site."]
[]
[null,"Block Notation"]
[]
[null,"Note: For the purpose of tendering only the total quantity shall be used in calculating the amount for inclusion in the tender at the tendered rates.\nBlock A : Admin Block and Classrooms\nBlock B : 7 Classroom Block\nBlock C :7 Classroom Block\nBlock D : Guard house                            "]
[]
[null,"EXCAVATION AND FILLING OTHER THAN BULK"]
[]
[null,"Excavation in earth not exceeding 2m deep:"]
[]
[1,"Trenches. ","m3",28,null,{"$f":"D208*E208","v":0}]
[]
[null,"Back excavation of vertical sides of excavation in earth for working space including backfilling compacted to 95% Mod AASHTO density:"]
[]
[2,"Not exceeding 0,5m deep.","m2",38,null,{"$f":"D212*E212","v":0}]
[]
[null,"Extra over excavations other than bulk in earth for excavation in:"]
[]
[3,"Soft rock.","m3",6,null,{"$f":"D216*E216","v":0}]
[]
[4,"Hard rock.","m3",6,null,{"$f":"D218*E218","v":0}]
[]
[null,"Risk of collapse of excavations other than bulk:"]
[]
[5,"Sides of trench and hole excavations not exceeding 1,5m deep.","m2",38,null,{"$f":"D222*E222","v":0}]
[]
[null,"KEEPING EXCAVATIONS FREE OF WATER"]
[]
[null,"Keeping excavations free of water:"]
[]
[6,"Keeping excavations free of all water other than subterranean water.","Item",1,null,{"$f":"D228*E228","v":0}]
[]
[null,"CARTING AWAY"]
[]
[null,"Extra over all excavations for loading, carting and dumping surplus excavated material (no allowance made for increase in bulk):"]
[]
[7,"Surplus material from excavations and/or stock piles on site to a dumping site to be located by the contractor or as directed by the engineer.","m3",22,null,{"$f":"D234*E234","v":0}]
[]
[null,"EARTH FILLING, etc."]
[]
[null,"Earth filling of G7 quality material supplied by the Contractor compacted to 95% Mod AASHTO density:"]
[]
[8,"Under surface beds, etc.","m3",32,null,{"$f":"D240*E240","v":0}]
[]
[null,"Compaction of surfaces:"]
[]
[9,"Compaction of ground surface under floors, etc. including scarifying for a depth of 150mm, breaking down oversize material, adding suitable material where necessary and compacting to 93% Mod AASHTO density.","m2",288,null,{"$f":"D244*E244","v":0}]
[]
[null,"TESTS"]
[]
[null,"Prescribed density tests on filling:"]
[]
[10,"Modified AASHTO Density test.","No",1,null,{"$f":"D250*E250","v":0}]
[]
[null,"SOIL POISONING"]
[]
[null,"Approved brand of anti-termite soil poison applied by a Registered Pest Control company and guaranteed against termite infestation for ten years:"]
[]
[11,"Under floors, etc., including forming and poisoning shallow furrows against foundation walls, etc., filling in furrows and ramming.","m2",288,null,{"$f":"D256*E256","v":0}]
[]
[12,"To bottom and sides of trenches.","m2",168,null,{"$f":"D258*E258","v":0}]
[]
[null,"Total for Section 2: Bill No. 2",{"$nulls":3},{"$f":"SUM(F208:F259)","v":0}]
[]
[null,"BILL NO. 3 : CONCRETE, FORMWORK AND REINFORCEMENT"]
[]
[null,"SUPPLEMENTARY PREAMBLES"]
[]
[null,"The Tenderer is referred to the relevant Clauses in the Standard Preambles to All Trades and to the Supplementary Preambles which are incorporated in these Bills of Quantities."]
[]
[null,"Cost of tests:"]
[]
[null,"The costs of making, storing and testing of concrete test cubes as required under clause 7 'Tests' of SABS 1200 G shall include the cost of providing cube moulds necessary for the purpose, for testing costs and for submitting reports on the tests."]
[]
[null,"Formwork:"]
[]
[null,"Descriptions of formwork shall be deemed to include use and waste only (except where described as left in or permanent), for fitting together in the required forms, wedging, plumbing and fixing to true angles and surfaces as necessary to ensure easy release."]
[]
[null,"The vertical strutting shall be carried down to such construction as is sufficiently strong to afford the required support without damage and shall remain in position until the newly constructed work is able to support itself."]
[]
[null,"Formwork to soffits of solid slabs etc., shall be deemed to be to slabs not exceeding 250mm thick unless otherwise described."]
[]
[null,"Block Notation"]
[]
[null,"Note: For the purpose of tendering only the total quantity shall be used in calculating the amount for inclusion in the tender at the tendered rates.\nBlock A : Admin Block and Classrooms\nBlock B : 7 Classroom Block\nBlock C :7 Classroom Block\nBlock D : Guard house                            "]
[]
[null,"REINFORCED CONCRETE"]
[]
[null,"30MPa/19mm Reinforced concrete cast in/on formwork (Provisional):"]
[]
[1,"Surface beds.","m3",29,null,{"$f":"D288*E288","v":0}]
[]
[2,"Apron.","m3",9,null,{"$f":"D290*E290","v":0}]
[]
[3,"Concrete stairs.","m3",16,null,{"$f":"D292*E292","v":0}]
[]
[4,"Walkway.","m3",13,null,{"$f":"D294*E294","v":0}]
[]
[null,"TEST BLOCKS"]
[]
[null,"Test blocks:"]
[]
[5,"Allow for all necessary concrete test cubes size 150 x 150 x 150mm cast from batches of concrete required for the entire contract as specified, made, stored, cured and tested in accordance with SABS Methods 861 and 863, including use of approved cube mould.","Sets",3,null,{"$f":"D300*E300","v":0}]
[]
[null,"FORMWORK"]
[]
[null,"ROUGH FORMWORK (DEGREE OF ACCURACY II) (CPAP WORK GROUP NO. 111)"]
[]
[null,"Rough Formwork to Sides of:"]
[]
[6,"Edges, risers, ends and reveals not exceeding 300mm high or wide.","m",126,null,{"$f":"D308*E308","v":0}]
[]
[null,"CONCRETE SUNDRIES"]
[]
[null,"Finishing top surfaces of concrete smooth with a wood float:"]
[]
[7,"Surface beds, slabs, etc.","m2",288,null,{"$f":"D314*E314","v":0}]
[]
[null,"MOVEMENT JOINTS, etc."]
[]
[null,"Movement Joints between vertical concrete and brick surfaces:"]
[]
[8,"10mm softboard isolation joints not exceeding 300mm wide.","m",68,null,{"$f":"D320*E320","v":0}]
[]
[null,"Saw cut joints:"]
[]
[9,"3 x 12mm Saw cut joints in top of concrete.","m",36,null,{"$f":"D324*E324","v":0}]
[]
[null,"REINFORCEMENT "]
[]
[null,"High and Mild tensile steel reinforcement to structural concrete work:"]
[]
[10,"Various diameter bars.","t",2,null,{"$f":"D330*E330","v":0}]
[]
[null,"Fabric reinforcement:"]
[]
[11,"Type 193 fabric reinforcement in concrete surface beds, slabs, etc.","m2",1075,null,{"$f":"D334*E334","v":0}]
[]
[null,"Total for Section 2: Bill No. 3",{"$nulls":3},{"$f":"SUM(F287:F335)","v":0}]
[]
[null,"BILL NO. 4 : MASONRY"]
[]
[null,"(CPAP WORK GROUP 118 UNLESS OTHERWISE STATED)."]
[]
[null,"For Preambles refer to the relevant Clauses in the ASAQS Model Preambles for Trades 2008 and Supplementary Preambles which is incorporated in these Bills of Quantities."]
[]
[null,"Block Notation"]
[]
[null,"Note: For the purpose of tendering only the total quantity shall be used in calculating the amount for inclusion in the tender at the tendered rates.\nBlock A : Admin Block and Classrooms\nBlock B : 7 Classroom Block\nBlock C :7 Classroom Block\nBlock D : Guard house                            "]
[]
[null,"BRICKWORK"]
[]
[null,"Sizes in descriptions:"]
[]
[null,"Where sizes in descriptions are given in brick units, 'one brick' shall represent the length and 'half brick' the width of a brick."]
[]
[null,"Bagging and sealing:"]
[]
[null,"Walls in two skins described as 'bagged and sealed' shall be deemed to include having the outer face of the inner skin bagged with 1:6 cement and sand mixture and sealed with two coats 'Brixeal' bitumen emulsion waterproofing coating."]
[]
[null,"Face bricks:"]
[]
[null,"Bricks shall be ordered timeously to obtain uniformity in size and colour."]
[]
[null,"Pointing:"]
[]
[null,"Descriptions of recessed pointing to fair face brickwork and face brickwork shall be deemed to include square recessed, hollow recessed, weathered pointing, etc."]
[]
[null,"BRICKWORK IN FOUNDATIONS"]
[]
[1,"One brick walls.","m2",201,null,{"$f":"D368*E368","v":0}]
[]
[null,"BRICKWORK IN SUPERSTRUCTURE"]
[]
[null,"Brickwork of NFP bricks (7 Mpa nominal compressive strength) in Class II mortar:"]
[]
[2,"Half brick walls in beamfilling.","m2",19,null,{"$f":"D374*E374","v":0}]
[]
[3,"One brick wall.","m2",53,null,{"$f":"D376*E376","v":0}]
[]
[null,"BRICKWORK SUNDRIES"]
[]
[null,"Brickwork reinforcement:"]
[]
[4,"75mm Wide reinforcement built in horizontally.","m",104,null,{"$f":"D382*E382","v":0}]
[]
[5,"150mm Wide reinforcement built in horizontally.","m",188,null,{"$f":"D384*E384","v":0}]
[]
[null,"FACE BRICKWORK"]
[]
[null,"Corobrik \"Montana Travertine FBA\" or equal and other approved face bricks in stretc.her bond with recessed horizontal and vertical joints:"]
[]
[6,"Extra over brickwork for brick-on-edge header course.","m",13,null,{"$f":"D390*E390","v":0}]
[]
[null,"Total for Section 2: Bill No. 4",{"$nulls":3},{"$f":"SUM(F367:F391)","v":0}]
[]
[null,"BILL NO. 5 : WATERPROOFING"]
[]
[null,"(CPAP WORK GROUP 120 UNLESS OTHERWISE STATED)."]
[]
[null,"For Preambles refer to the relevant Clauses in the ASAQS Model Preambles for Trades 2008 and Supplementary Preambles which is incorporated in these Bills of Quantities."]
[]
[null,"The Tenderer is referred to the relevant Clauses in the Standard Preambles to All Trades and to the Supplementary Preambles which are incorporated in these Bills of Quantities."]
[]
[null,"Note: For the purpose of tendering only the total quantity shall be used in calculating the amount for inclusion in the tender at the tendered rates.\nBlock A : Admin Block and Classrooms\nBlock B : 7 Classroom Block\nBlock C :7 Classroom Block\nBlock D : Guard house                            "]
[]
[null,"One layer of 250 micron Consol Plastics Gunplas USB Green waterproof sheeting sealed at laps with Gunplas Pressure Sensitive Tape:"]
[]
[1,"Under surface beds.","m2",{"$f":"857+218","v":1075},null,{"$f":"D406*E406","v":0}]
[]
[2,"Under brick work.","m2",72,null,{"$f":"D408*E408","v":0}]
[]
[]
[]
[null,"Total for Section 2: Bill No. 5",{"$nulls":3},{"$f":"SUM(F405:F411)","v":0}]
[]
[null,"BILL NO. 6 : ROOF COVERINGS"]
[]
[null,"(CPAP WORK GROUP 124 UNLESS OTHERWISE STATED)."]
[]
[null,"For Preambles refer to the relevant Clauses in the ASAQS Model Preambles for Trades 2008 and Supplementary Preambles which is incorporated in these Bills of Quantities."]
[]
[null,"The Tenderer is referred to the relevant Clauses in the Standard Preambles to All Trades and to the Supplementary Preambles which are incorporated in these Bills of Quantities."]
[]
[null,"Block Notation"]
[]
[null,"Note: For the purpose of tendering only the total quantity shall be used in calculating the amount for inclusion in the tender at the tendered rates.\nBlock A : Admin Block and Classrooms\nBlock B : 7 Classroom Block\nBlock C :7 Classroom Block\nBlock D : Guard house                            "]
[]
[null,"CORRUGATED METAL SHEETING AND ACCESSORIES"]
[]
[null,"Fixing of all roof sheeting is to be in accordance with the Manufacturer's approved Instruction Book. The Manufacturer shall comply with ISO9002 Quality Management System."]
[]
[null,"0.53mm thick, Aluminium Zinc Corrugated (AZ150) profile 'colorplus' roof sheeting or other approved finish to both sides, or similar approved. Thickness of sheeting to be confirmed on site where matching existing. (Colour on top to be confirmed and factory standard grey to underside). Sheets to be fixed to every purlin using appropriate self drilling/ tapping screws. At the ridge and eave purlins, fixing to be at every crown. Purlins spaced as per manufacturers specifications on engineered timber trusses (or existing). Holes in sheets to be drilled not punched. Sheets are to be fixed to 76 x 50mm purlins spaced at max. 1100mm (to manufacture specification as per sheeting requirements) on engineered timber trusses (trusses and purlins to be placed where specified and sizes may vary). "]
[]
[1,"Roof covering with minimum pitch not exceeding 25 degrees including 26mm diameter washers with rubber gaskets.","m2",368,null,{"$f":"D432*E432","v":0}]
[]
[2,"Standard galvanised ridge capping (500mm girth) screwed through sheeting to purlins.","m",128,null,{"$f":"D434*E434","v":0}]
[]
[null,"Roof Screws:"]
[]
[3,"12 x 65 timber fix hex head washer flange roof screws with 26mm diameter washers with rubber gaskets.","No",2940,null,{"$f":"D438*E438","v":0}]
[]
[4,"Galvanised 13mm hexagon Mesh to be installed on both eave overhangs.","m2",313,null,{"$f":"E440*D440","v":0}]
[]
[null,"Flashings:"]
[]
[5,"Sondor IBR pattern polyclosers including sondorband tape under capping.","m",128,null,{"$f":"D444*E444","v":0}]
[]
[6,"Sondor corrugated pattern polyclosers including sondorband tape under capping.","m",225,null,{"$f":"D446*E446","v":0}]
[]
[null,"Waterproofing membrane plus side wall flashing (231 x 231mm) to all split level roofs.","m",225,null,{"$f":"E448*D448","v":0}]
[]
[7,"Side wall flashings 308mm girth.","m",37,null,{"$f":"D450*E450","v":0}]
[]
[8,"Apex flashings 462mm girth.","m",29,null,{"$f":"D452*E452","v":0}]
[]
[null,"ROOF AND WALL LINING AND INSULATION"]
[]
[null,"Sisalation RSA 420 - Double sided reflective foil laminate incorporating layers of kraft paper and reinforcing scrim, laminated together with low density polyethylene (293gsm):"]
[]
[9,"Insulation laid taut over trusses and under purlins on training tape.","m2",259,null,{"$f":"D458*E458","v":0}]
[]
[10,"48mm Sisalation foil tape to seam joints on the insulation.","m",1732,null,{"$f":"D460*E460","v":0}]
[]
[null,"Total for Section 2: Bill No. 6",{"$nulls":3},{"$f":"SUM(F430:F461)","v":0}]
[]
[null,"BILL NO. 7 : CARPENTRY AND JOINERY"]
[]
[null,"(CPAP WORK GROUP 126 UNLESS OTHERWISE STATED)."]
[]
[null,"For Preambles refer to the relevant Clauses in the ASAQS Model Preambles for Trades 2008 and Supplementary Preambles which is incorporated in these Bills of Quantities."]
[]
[null,"The Tenderer is referred to the relevant Clauses in the Standard Preambles to All Trades and to the Supplementary Preambles which are incorporated in these Bills of Quantities."]
[]
[null,"SUPPLEMENTARY PREAMBLES"]
[]
[null,"Fixing:"]
[]
[null,"Items described as 'nailed' shall be deemed to be fixed with hardened steel nails or pins, or to be shot-pinned, to brickwork or concrete."]
[]
[null,"Items described as 'plugged' shall be deemed to include screwing to fibre, plastic or metal plugs at not exceeding 500mm centres, and where described as 'bolted', the bolts have been given elsewhere."]
[]
[null,"Purlins are fixed to rafters with \"Teco\" hurricane clips. One clip at every intersection and two clips at ends if rafters with 2 no. 8mm diameter bolts or 8 no. 35mm long x 2.8mm diameter shouldered serrated nails per clip."]
[]
[null,"Fascia battens are to be fixed to rafters with 2 no. \"Trip-I-Grip\" brackets with 35mm long x 2.8mm shouldered serrated nails."]
[]
[null,"Barge battens are to be fixed to rafters with 2 no. \"Trip-I-Grip\" brackets with 32mm long x 2.8mm shouldered serrated nails."]
[]
[null,"Timber treatment:"]
[]
[null,"All roof timbers must be C.C.A treated."]
[]
[null,"Block Notation"]
[]
[null,"Note: For the purpose of tendering only the total quantity shall be used in calculating the amount for inclusion in the tender at the tendered rates.\nBlock A : Admin Block and Classrooms\nBlock B : 7 Classroom Block\nBlock C :7 Classroom Block\nBlock D : Guard house                            "]
[]
[null,"ROOF CONSTRUCTION"]
[]
[null,"Wrought softwood:"]
[]
[1,"Double pitch roof trusses having 8465mm clear span between 220mm brickwalls and 1000mm high to apex with one 1000mm eaves projection and one 600mm eaves projection.","No",28,null,{"$f":"D498*E498","v":0}]
[]
[null,"Engineers Certificate and Drawings:"]
[]
[2,"Allowance for the issue of TR1 and TR2 certificates maximum rate.","Item ",1,null,{"$f":"D502*E502","v":0}]
[]
[3,"38 x 114mm grade S5 pine rafters spliced to existing cut back rafters, minimum splice length 300mm to be nailed or bolted together to engineers detail. ","m",15,null,{"$f":"D504*E504","v":0}]
[]
[4,"76 x 50mm Purlins.","m",479,null,{"$f":"D506*E506","v":0}]
[]
[5,"38 x 114mm False timber fixed onto truss for fascia boards.","m",258,null,{"$f":"D508*E508","v":0}]
[]
[6,"38 x 114mm False timber fixed onto truss for barge boards.","m",69,null,{"$f":"D510*E510","v":0}]
[]
[7,"76 x 50mm False timber fixed onto external side of the gable walls between purlins for covering of beam filling.","m",69,null,{"$f":"D512*E512","v":0}]
[]
[8,"Bottom chord bracing including hanger brackets.","m",46,null,{"$f":"D514*E514","v":0}]
[]
[9,"38 x 114mm Cross bracing.","m",80,null,{"$f":"D516*E516","v":0}]
[]
[10,"38 x 38mm brandering.","m",2031,null,{"$f":"D518*E518","v":0}]
[]
[11,"Hurricane clips.","m",986,null,{"$f":"D520*E520","v":0}]
[]
[null,"EAVES, VERGES, etc."]
[]
[null,"Everite Nutec or other equal and approved:"]
[]
[null,"Eaves:"]
[]
[12,"10mm Thick x 225 medium density un-grooved fibre cement fascia board including joiners (product no. 040-903). Drill for and fix with hot dipped galvanized drive screws and washers.","m",258,null,{"$f":"D528*E528","v":0}]
[]
[null,"Verges:"]
[]
[13,"Extra over for 200 x 100mm 90 degree angle sheet metal flashing, same colour as roof sheetimg fitted to gable walls and fixed and roof edges. Barge board over both sides of flashing to be bent with 2,5 degree 10mm wide inner  and outer angle.","m",69,null,{"$f":"D532*E532","v":0}]
[]
[null,"DOORS, etc. HUNG TO STEEL FRAMES"]
[]
[null,"Rates must include for hanging (frames are elsewhere measured unless otherwise described)."]
[]
[null,"Tenderers are advised to refer to the Architect's detailed drawings, schedules, etc., which indicate the various door types and references where applicable."]
[]
[null,"All opening sizes must be verified on site before hanging commences.  Additional costs for trimming of doors, etc., must be included in the overall rate."]
[]
[null,"Solid Meranti Doors:"]
[]
[14,"2032 x 813 x 40mm Meranti hardwood timber framed, ledged, braced and battened door with 110 x 20mm braces and min x 20 T.G. & V jointed battens.","No",23,null,{"$f":"D544*E544","v":0}]
[]
[null,"SUNDRIES"]
[]
[null,"Weather strips:"]
[]
[15,"45mm x 915mm Weather strips fitted to doors using 4 No. 70mm long brass screws, plugged.","No",23,null,{"$f":"D550*E550","v":0}]
[]
[16,"19 x 120mm Timber shutter board dado rail to be fixed every 500mm with 500 x 66mm diameter hilti screw and plug.","m",486,null,{"$f":"D552*E552","v":0}]
[]
[null,"Total for Section 2: Bill No. 7",{"$nulls":3},{"$f":"SUM(F497:F553)","v":0}]
[]
[null,"BILL NO. 8 : CEILINGS PARTITIONS AND ACCESS FLOORING (PROVISIONAL)"]
[]
[null,"(CPAP WORK GROUP 128 UNLESS OTEHERWISE STATED)."]
[]
[null,"For Preambles refer to the relevant Clauses in the ASAQS Model Preambles for Trades 2008 and Supplementary Preambles which is incorporated in these Bills of Quantities."]
[]
[null,"The Tenderer is referred to the relevant Clauses in the Standard Preambles to All Trades and to the Supplementary Preambles which are incorporated in these Bills of Quantities."]
[]
[null,"Block Notation"]
[]
[null,"Note: For the purpose of tendering only the total quantity shall be used in calculating the amount for inclusion in the tender at the tendered rates.\nBlock A : Admin Block and Classrooms\nBlock B : 7 Classroom Block\nBlock C :7 Classroom Block\nBlock D : Guard house                            "]
[]
[null,"NAILED UP AND SCREW UP CEILINGS (CPAP Work Group No 126)"]
[]
[null,"9.0mm \"Everite Nutec\" plain boards or similar approved, fixed to 38 x 38mm on edge timber brandering at max 600mm centres with timber cover strips at joints:"]
[]
[1,"Ceilings including 38 x 38mm S.A. Pine brandering at maximum 300 c/c nailed to underside of 114 x 38mm timbers.","m2",857,null,{"$f":"D572*E572","v":0}]
[]
[2,"Extra over ceiling for 900 x 900mm trap door of 38 x 38mm wrought softwood rebated framing with one 38 x 38mm sawn softwood cross brander covered with ceiling board and fitted flush in opening.","No",15,null,{"$f":"D574*E574","v":0}]
[]
[null,"Cornices:"]
[]
[3,"75mm Coved cornice.","m",498,null,{"$f":"D578*E578","v":0}]
[]
[null,"Total for Section 2: Bill No. 8",{"$nulls":3},{"$f":"SUM(F572:F579)","v":0}]
[]
[null,"BILL NO. 9 : IRONMONGERY"]
[]
[null,"(CPAP WORKGROUP 132 UNLESS OTHERWISE STATED)."]
[]
[null,"For Preambles refer to the relevant Clauses in the ASAQS Model Preambles for Trades 2008 and Supplementary Preambles which is incorporated in these Bills of Quantities."]
[]
[null,"The Tenderer is referred to the relevant Clauses in the Standard Preambles to All Trades and to the Supplementary Preambles which are incorporated in these Bills of Quantities."]
[]
[null,"Block Notation"]
[]
[null,"Note: For the purpose of tendering only the total quantity shall be used in calculating the amount for inclusion in the tender at the tendered rates.\nBlock A : Admin Block and Classrooms\nBlock B : 7 Classroom Block\nBlock C :7 Classroom Block\nBlock D : Guard house                            "]
[]
[null,"HINGES, BOLTS, etc."]
[]
[null,"Union or other approved lock sets:"]
[]
[1,"Stainless steel two ball bearing butt hinge, size 100 x 75 x 3mm.","Pairs",23,null,{"$f":"D598*E598","v":0}]
[]
[2,"Union 4 Lever Commercial Series Mortice lock 2247-7855 with CP on brass Gower Lever handles CB862-05Ch.","No",23,null,{"$f":"D600*E600","v":0}]
[]
[null,"Handles:"]
[]
[null,"Union or other approved:"]
[]
[3,"132mm brass window handle R/H,including brackets, etc.","No",68,null,{"$f":"D606*E606","v":0}]
[]
[4,"132mm brass window handle L/H, including brackets, etc.","No",68,null,{"$f":"D608*E608","v":0}]
[]
[5,"Brass window latch to match existing.","No",68,null,{"$f":"D610*E610","v":0}]
[]
[null,"SUNDRIES"]
[]
[null,"Door stops:"]
[]
[6,"38mm Diameter rubber door stop, plugged and screwed to wall with 50mm long brass screw.","No",23,null,{"$f":"D616*E616","v":0}]
[]
[null,"Sliding Stays:"]
[]
[7,"175mm brass plated sliding stay.","No",84,null,{"$f":"D620*E620","v":0}]
[]
[null,"Fixed Projection Boards:"]
[]
[8,"Fixed projection non-reflective white board, aluminium framed, magnetic surface centre board 2420 x 1220 mm complete with 2 swing leaf aluminium framed magnetic chalk boards (1220 x 1210 mm) without any lines or graphics, etc., with heavy duty hinges and one complete aluminium pen tray (2250 mm) for the full length of the centre board.\nPrice to include 1 complete magnetic starter pack consisting of the following for each board supplied:\n4 x white board markers (red, green, black, blue)\n1 x cleaning cloth\n1 x magnetic eraser\n1 x cleaning fluid 250 ml\n4 x moulded magnets","No",14,null,{"$f":"D624*E624","v":0}]
[]
[null,"Pinning Boards:"]
[]
[9,"Pinning board 2400 x 1200mm high as \"Vitrex 2309\" fixed complete to walls.","No ",14,null,{"$f":"E628*D628","v":0}]
[]
[10,"Provisional amount for the supply and install of one (1) smart interactive board (screen) to be installed in the team teaching or general multi-purpose classroom or standard classroom.","No",1,{"v":120000,"d":"R120,000.00"},{"$f":"D630*E630","v":{"v":120000,"d":"R120,000.00"}}]
[]
[11,"Allow for profit and attendance on the above mentioned item %.","%",{"$f":"E630","v":{"v":120000,"d":"R120,000.00"}},null,{"$f":"D632*E632","v":0}]
[]
[12,"Provisional amount to allow for training to be given on the functioning of the smart interactive board (screen).","Item",1,{"v":10000,"d":"R10,000.00"},{"$f":"D634*E634","v":{"v":10000,"d":"R10,000.00"}}]
[]
[13,"Allow for profit and attendance on the above mentioned item %.","%",{"$f":"E634","v":{"v":10000,"d":"R10,000.00"}},null,{"$f":"D636*E636","v":0}]
[]
[null,"Total for Section 2: Bill No. 9",{"$nulls":3},{"$f":"SUM(F598:F637)","v":{"v":130000,"d":"R130,000.00"}}]
[]
[null,"BILL NO. 10 : METALWORK"]
[]
[null,"(CPAP WORKGROUP 136 UNLESS OTHERWISE STATED)."]
[]
[null,"For Preambles refer to the relevant Clauses in the ASAQS Model Preambles for Trades 2008 and Supplementary Preambles which is incorporated in these Bills of Quantities."]
[]
[null,"The Tenderer is referred to the relevant Clauses in the Standard Preambles to All Trades and to the Supplementary Preambles which are incorporated in these Bills of Quantities."]
[]
[null,"Block Notation"]
[]
[null,"Note: For the purpose of tendering only the total quantity shall be used in calculating the amount for inclusion in the tender at the tendered rates.\nBlock A : Admin Block and Classrooms\nBlock B : 7 Classroom Block\nBlock C :7 Classroom Block\nBlock D : Guard house                            "]
[]
[null,"GALVANISED BURGLAR BARS"]
[]
[null,"Burglar Bars:"]
[]
[1,"Galvanised 30 x 3mm Thick flat burglar bars.","m",156,null,{"$f":"D656*E656","v":0}]
[]
[null,"SCREENS AN GATES"]
[]
[2,"Single gate size 843 x 2250mm high of 40 x 60 x 3mm rectangular tubing with 19mm diameter steel rods at 110mm centre and 40 x 6mm horizontal support flat bars fixed with hinges to steel frame of 45 x 45 x 3mm rectangular tubing fixed to walls with bolts and lugs including padlock plate.","No",23,null,{"$f":"D660*E660","v":0}]
[]
[null,"HOT DIP GALVANISED STEEL POSTS"]
[]
[null,"Posts embedded in concrete:"]
[]
[3,"2,8m Galvanised steel posts.","No ",30,null,{"$f":"D666*E666","v":0}]
[]
[null,"GALVANISED PRESSED STEEL DOOR FRAMES"]
[]
[null,"1,2mm Double rebated frames suitable for existing one brick walls:"]
[]
[4,"Steel door frame size 813 x 2032mm high.","No",9,null,{"$f":"D672*E672","v":0}]
[]
[5,"Standard Education window frame hot dip galvanised complete with burglar bars, bottom hinged and complete with centre window mechanism closing hook and lug and open restrictors that cannot open to far. Size: 1500 x 1022mm.","No",16,null,{"$f":"D674*E674","v":0}]
[]
[6,"Standard Education window frame hot dip galvanised complete with burglar bars, bottom hinged and complete with centre window mechanism closing hook and lug and open restrictors that cannot open to far. Size: 1250 x 889 mm.","No",12,null,{"$f":"D676*E676","v":0}]
[]
[null,"Total for Section 2: Bill No. 10",{"$nulls":3},{"$f":"SUM(F656:F676)","v":0}]
[]
[null,"BILL NO.11 : PLASTERING (PROVISIONAL)"]
[]
[null,"(CPAP WORK GROUP 142 UNLESS OTHERWISE STATED)."]
[]
[null,"SUPPLEMENTARY PREAMBLES"]
[]
[null,"The Tenderer is referred to the relevant Clauses in the Standard Preambles to All Trades and to the Supplementary Preambles which are incorporated in these Bills of Quantities."]
[]
[null,"Ceiling and cornice to be prepared adequately and painted 2 coats Super Acrylic Polvin matt white paint. Items as above or similar approved"]
[]
[null,"Block Notation"]
[]
[null,"Note: For the purpose of tendering only the total quantity shall be used in calculating the amount for inclusion in the tender at the tendered rates.\nBlock A : Admin Block and Classrooms\nBlock B : 7 Classroom Block\nBlock C :7 Classroom Block\nBlock D : Guard house                            "]
[]
[null,"SCREEDS"]
[]
[null,"Screeds wood floated on concrete:"]
[]
[1,"25mm Thick on floors and landings.","m2",{"$f":"857+6","v":863},null,{"$f":"D698*E698","v":0}]
[]
[null,"INTERNAL PLASTER"]
[]
[null,"3:1 Cement plaster on brickwork:"]
[]
[2,"On internal walls.","m2",{"$f":"1322+6","v":1328},null,{"$f":"D704*E704","v":0}]
[]
[null,"EXTERNAL PLASTER"]
[]
[null,"3:1 Cement plaster on brickwork:"]
[]
[3,"On external walls.","m2",{"$f":"653+146","v":799},null,{"$f":"D710*E710","v":0}]
[]
[null,"Total for Section 2: Bill No. 11",{"$nulls":3},{"$f":"SUM(F698:F711)","v":0}]
[]
[null,"BILL NO. 12 : PLUMBING AND DRAINAGE"]
[]
[null,"(CPAP WORK GROUP 148 UNLESS OTHERWISE STATED)."]
[]
[null,"For Preambles refer to the relevant Clauses in the ASAQS Model Preambles for Trades 2008 and Supplementary Preambles which is incorporated in these Bills of Quantities."]
[]
[null,"SUPPLEMENTARY PREAMBLES"]
[]
[null,"The Tenderer is referred to the relevant Clauses in the Standard Preambles to All Trades and to the Supplementary Preambles which are incorporated in these Bills of Quantities."]
[]
[null,"Block Notation"]
[]
[null,"Note: For the purpose of tendering only the total quantity shall be used in calculating the amount for inclusion in the tender at the tendered rates.\nBlock A : Admin Block and Classrooms\nBlock B : 7 Classroom Block\nBlock C :7 Classroom Block\nBlock D : Guard house                            "]
[]
[null,"Copper pipes:"]
[]
[null,"Pipes shall be hard drawn and half-hard pipes of the class stated. Class 0 (thin walled hard drawn) pipes shall not be bent. Class 1 (thin walled half-hard), class 2 (half-hard) and class 3 (heavy walled half-hard) pipes shall only be bent with benders with inner and outer formers. Fittings to copper waste, vent and anti-syphon pipes, capillary solder fittings and compression fittings shall be 'Cobra Watertech' type. Capillary solder fittings shall comply with ISO 2016. Only compression fittings shall be used in walls or in ground."]
[]
[null,"Fixing of pipes:"]
[]
[null,"Unless specifically otherwise stated, descriptions of pipes shall be deemed to include for fixing to walls etc. casting in, building in or suspending not exceeding 1m below suspension level."]
[]
[null,"Excavations:"]
[]
[null,"No claim for rock excavation will be entertained unless the Contractor has timeously notified the Quantity Surveyor thereof prior to backfilling."]
[]
[null,"Soft rock' and 'hard rock' shall be as defined in 'Earthworks'."]
[]
[null,"Laying, backfilling, bedding, etc. of pipes"]
[]
[null,"Pipes shall be laid and bedded and trenches shall be carefully backfilled in accordance with manufacturers' instructions."]
[]
[null,"Where no manufacturers' instructions exist pipes shall be laid in accordance with clauses 5.1 and 5.2 of each of the following: SABS 1200 L : Medium pressure pipelines  LD : Sewers  LE : Stormwater drainage  Pipe trenches etc. shall be backfilled in accordance with clause 3, 5.5, 5.6, 5.7 and 7 of SAB."]
[]
[null,"Waste unions:"]
[]
[null,"Descriptions of waste unions shall be deemed to include rubber or vulcanite plugs and chains fixed to fittings."]
[]
[null,"RAINWATER DISPOSAL"]
[]
[null,"Seamless Aluminium:"]
[]
[1,"150 x 150mm box gutters with white baked enamel finish fixed with white concealed brackets.","m",{"$f":"258+12","v":270},null,{"$f":"D756*E756","v":0}]
[]
[2,"100 x 75mm fluted aluminium downpipes with white baked enamel finish.","m",{"$f":"84+6","v":90},null,{"$f":"D758*E758","v":0}]
[]
[3,"Extra over eaves gutter for drop box suitable for 150 x 150mm box gutter.","No",{"$f":"24+2","v":26},null,{"$f":"D760*E760","v":0}]
[]
[4,"Extra over eaves gutter for stopped ends.","No",10,null,{"$f":"D762*E762","v":0}]
[]
[5,"Extra over rainwater pipe for shoes and bends.","No",26,null,{"$f":"D764*E764","v":0}]
[]
[null,"Total for Section 2: Bill No. 12",{"$nulls":3},{"$f":"SUM(F756:F765)","v":0}]
[]
[null,"BILL NO. 13 : GLAZING"]
[]
[null,"(CPAP WORK GROUP 150 UNLESS OTHERWISE STATED)."]
[]
[null,"For Preambles refer to the relevant Clauses in the ASAQS Model Preambles for Trades 2008 and Supplementary Preambles which is incorporated in these Bills of Quantities."]
[]
[null,"The Tenderer is referred to the relevant Clauses in the Standard Preambles to All Trades and to the Supplementary Preambles which are incorporated in these Bills of Quantities."]
[]
[null,"The Tenderer is to allow for providing a Glazing Certificate upon completion."]
[]
[null,"Block Notation"]
[]
[null,"Note: For the purpose of tendering only the total quantity shall be used in calculating the amount for inclusion in the tender at the tendered rates.\nBlock A : Admin Block and Classrooms\nBlock B : 7 Classroom Block\nBlock C :7 Classroom Block\nBlock D : Guard house                            "]
[]
[null,"GLAZING TO STEEL WITH PUTTY"]
[]
[null,"6.38mm toughened annealed safety glazing:"]
[]
[1,"Panes exceeding 0,1m2 and not exceeding 0,5m2.","m2",40,null,{"$f":"D786*E786","v":0}]
[]
[2,"Putty to existing windows.","m",26,null,{"$f":"D788*E788","v":0}]
[]
[3,"Certificate of Compliance for glazing as per SALGA requirements.","Item",1,null,{"$f":"D790*E790","v":0}]
[]
[null,"Total for Section 2: Bill No. 13",{"$nulls":3},{"$f":"SUM(F786:F791)","v":0}]
[]
[null,"BILL NO. 14 : PAINTWORK"]
[]
[null,"(CPAP WORK GROUP 152 UNLESS OTHERWISE STATED)."]
[]
[null,"SUPPLEMENTARY PREAMBLES"]
[]
[null,"The Tenderer is referred to the relevant Clauses in the Standard Preambles to All Trades and to the Supplementary Preambles which are incorporated in these Bills of Quantities."]
[]
[null,"Block Notation"]
[]
[null,"Note: For the purpose of tendering only the total quantity shall be used in calculating the amount for inclusion in the tender at the tendered rates.\nBlock A : Admin Block and Classrooms\nBlock B : 7 Classroom Block\nBlock C :7 Classroom Block\nBlock D : Guard house                            "]
[]
[null,"PAINTWORK, etc. TO PREVIOUSLY PAINTED WORK"]
[]
[null,"PLASCON OR OTHER EQUAL AND APPROVED"]
[]
[null,"ON INTERNAL FLOATED PLASTER SURFACES"]
[]
[null,"Prepare surfaces and remove all loose material, apply one coat acrylic PVA suitable for washing with a mild detergent and with a matt finish and two coats alkaline resistant 100% pure acrylic filler coat. Colour to be discussed on site. To be in accordance with manufacturers specification:"]
[]
[1,"On interior walls.","m2",1328,null,{"$f":"D814*E814","v":0}]
[]
[null,"ON EXTERNAL FLOATED PLASTER SURFACES."]
[]
[null,"Prepare surfaces and remove all loose material. Apply one coat alkaline resistant primer, two coats superior equality acrylic emulsion paint for external:"]
[]
[2,"On exterior walls.","m2",{"$f":"653+32","v":685},null,{"$f":"D820*E820","v":0}]
[]
[null,"ON \"EVERITE NUTEC\" CEILING BOARD SURFACES"]
[]
[null,"Prepare surfaces and remove all loose material, and apply two coats semi-gloss  PVA paint. Colour: white, to comply with SABS 643 \"Co-polymer\", or equivalent standard:"]
[]
[3,"On ceilings.","m2",857,null,{"$f":"D826*E826","v":0}]
[]
[4,"On cornices.","m2",38,null,{"$f":"D828*E828","v":0}]
[]
[null,"ON FIBRE-CEMENT BOARD SURFACES"]
[]
[null,"Apply one coat 'Universal Undercoat (UC1) and apply two coats \"Super Universal Enamel' paint:"]
[]
[5,"On exterior fascia's and barge boards.","m2",29,null,{"$f":"D834*E834","v":0}]
[]
[null,"ON WOOD SURFACES"]
[]
[null,"Stop, fill, sand down with 150 grit sandpaper in direction of grain, seal with wood care knotting (PK2). Finish with wood care sun proofing coating to doors and trims:"]
[]
[6,"On doors (both sides measured over the full flat area).","m2",76,null,{"$f":"D840*E840","v":0}]
[]
[null,"Apply two coats 'Carbolineum' stained oil preservatives:"]
[]
[7,"On roof timbers at eaves and verges.","m2",38,null,{"$f":"D844*E844","v":0}]
[]
[null,"ON METAL SURFACES"]
[]
[null,"One coat alkyd based zinc phosphate primer and two coats premium quality polyurethane enamel paint, on steel:"]
[]
[8,"Windows frames.","m2",105,null,{"$f":"D850*E850","v":0}]
[]
[null,"Total for Section 2: Bill No. 14",{"$nulls":3},{"$f":"SUM(F814:F851)","v":0}]
[]
[null,"BILL NO. 15 - ELECTRICAL (PROVISIONAL)"]
[]
[null,"The Tenderer is to allow for Preliminary and General costs in his rates."]
[]
[null,"Note: For the purpose of tendering only the total quantity shall be used in calculating the amount for inclusion in the tender at the tendered rates.\nBlock A : Admin Block and Classrooms\nBlock B : 7 Classroom Block\nBlock C :7 Classroom Block\nBlock D : Guard house                            "]
[]
[null,"Nett price for site establishment, site administration and compliance with the General Conditions of Contract and Specifications as laid down in this document where and as applicable."]
[]
[1,"Site administration (time related).","SUM",3,null,{"$f":"D862*E862","v":0}]
[]
[2,"Compliance with General Conditions of Contract (time related).","SUM",3,null,{"$f":"D864*E864","v":0}]
[]
[3,"Allow for attendance on the Specialist Lightning Protection Sub-Contractor for the satisfactory installation, testing and certification of the lightning protection system.","SUM",3,null,{"$f":"D866*E866","v":0}]
[]
[4,"Allow for compliance with the Occupational Health and Safety specification complete with the issue of a safety file and induction of all personnel.","SUM",3,null,{"$f":"D868*E868","v":0}]
[]
[null,"Labour allowance for additional sundry disconnections, relocations and temporary power supplies.  Time to be charged only as approved by Electrical Engineer:"]
[]
[5,"Supervisor.","Hrs",20,null,{"$f":"D872*E872","v":0}]
[]
[6,"Electrician.","Hrs",36,null,{"$f":"D874*E874","v":0}]
[]
[7,"Labourer.","Hrs",46,null,{"$f":"D876*E876","v":0}]
[]
[null,"LOW VOLTAGE CABLE"]
[]
[null,"Provide, install, test and commission the following 1000V PVC/SWA/PVC copper cables.  Prices shall allow for the installation of cables in cable ducts, through sleeves, conduit or installation against vertical and horizontal levels (e.g. walls poles etc.)."]
[]
[null,"10mm² x 2 Core Concentric Cable installed on poles:"]
[]
[8,"Supply.","m",215,null,{"$f":"D884*E884","v":0}]
[]
[9,"Install.","m",215,null,{"$f":"D886*E886","v":0}]
[]
[null,"7m gum pole planted 1m deep:"]
[]
[10,"Supply.","m",3,null,{"$f":"D890*E890","v":0}]
[]
[11,"Install.","m",3,null,{"$f":"D892*E892","v":0}]
[]
[null,"TERMINATIONS"]
[]
[null,"Terminate and make off the following 1000V PVC/SWA/PVC cables in a cable gland according to the manufacturer's instructions. Provide the cores with lugs and bolt onto terminals.  The cable gland and marking of the cable shall also be allowed for."]
[]
[null,"10mm² x 2 Core Concentric Cable:"]
[]
[12,"Supply.","Each",6,null,{"$f":"D900*E900","v":0}]
[]
[13,"Install.","Each",6,null,{"$f":"D902*E902","v":0}]
[]
[null,"Pole clamp for Concentric cable:"]
[]
[14,"Supply.","Each",3,null,{"$f":"D906*E906","v":0}]
[]
[15,"Install.","Each",3,null,{"$f":"D908*E908","v":0}]
[]
[null,"EXCAVATIONS"]
[]
[null,"All prices below shall include the excavation of trenches and holes, separating of stones, ground, and rock, levelling of trench bed, refill compacting and reparation of all surfaces to their original finish:"]
[]
[16,"Excavate in soft ground.","m3",30,null,{"$f":"D914*E914","v":0}]
[]
[17,"Excavate in soft rock.","m3",21,null,{"$f":"D916*E916","v":0}]
[]
[18,"Excavate in hard rock.","m3",9,null,{"$f":"D918*E918","v":0}]
[]
[19,"Test and issue a Certificate of Compliance as per SANS 10142.","Item",3,null,{"$f":"D920*E920","v":0}]
[]
[null,"DISTRIBUTION BOARDS"]
[]
[null,"The Contractor shall allow for the supply and installation of 400/231V Indoor Switchboards in Accordance with IEC6042-1, SANS 10142-1 and SANS 1073-1, as detailed in the Schedule of distribution boards."]
[]
[null,"60A single pole circuit breaker, 5kA:"]
[]
[20,"Supply.","m",3,null,{"$f":"D928*E928","v":0}]
[]
[21,"Install.","m",3,null,{"$f":"D930*E930","v":0}]
[]
[null,"Distribution board as per schedule 1:"]
[]
[22,"Supply.","No",3,null,{"$f":"D934*E934","v":0}]
[]
[23,"Install.","No",3,null,{"$f":"D936*E936","v":0}]
[]
[null,"CONDUIT"]
[]
[null,"20mm diameter PVC conduit:"]
[]
[24,"Supply.","m",395,null,{"$f":"D942*E942","v":0}]
[]
[25,"Install on surface.","m",237,null,{"$f":"D944*E944","v":0}]
[]
[26,"Chased in walls .","Each",158,null,{"$f":"D946*E946","v":0}]
[]
[null,"CIRCUIT WIRING"]
[]
[null,"The supply and installation in conduit of stranded copper, PVC insulated conductors in groups:"]
[]
[null,"2 x 1.5mm² and 2.5mm² earth:"]
[]
[27,"Supply.","m",575,null,{"$f":"D954*E954","v":0}]
[]
[28,"Install.","m",575,null,{"$f":"D956*E956","v":0}]
[]
[null,"2 x 2.5mm² and 2.5mm² earth:"]
[]
[29,"Supply.","m",265,null,{"$f":"D960*E960","v":0}]
[]
[30,"Install.","m",265,null,{"$f":"D962*E962","v":0}]
[]
[null,"CONDUIT BOXES"]
[]
[null,"50mm round PVC box flush in concrete & brickwork:"]
[]
[31,"Supply.","Each",120,null,{"$f":"D968*E968","v":0}]
[]
[32,"Install.","Each",120,null,{"$f":"D970*E970","v":0}]
[]
[null,"100 x 100 x 50mm PVC box flush in brickwork:"]
[]
[33,"Supply.","Each",41,null,{"$f":"D974*E974","v":0}]
[]
[34,"Install.","Each",41,null,{"$f":"D976*E976","v":0}]
[]
[null,"100 x 50 x 50mm PVC box flush in brickwork:"]
[]
[35,"Supply.","Each",32,null,{"$f":"D980*E980","v":0}]
[]
[36,"Install.","Each",32,null,{"$f":"D982*E982","v":0}]
[]
[null,"LIGHT FITTINGS"]
[]
[null,"Luminaires and accessories supplied complete with lamps.  All fittings to carry the SABS mark."]
[]
[null,"Surface mount commercial open channel light fitting complete with 2 x 58W lamps and electronic ballasts. Beka or approved equal:"]
[]
[37,"Supply.","Each",70,null,{"$f":"D990*E990","v":0}]
[]
[38,"Install.","Each",70,null,{"$f":"D992*E992","v":0}]
[]
[null,"IP65 Bulkhead fitting with white polycarbonate base and clear prismatic diffuser. To be supplied complete with a 14W energy saver lamp:"]
[]
[39,"Supply.","Each",28,null,{"$f":"D996*E996","v":0}]
[]
[40,"Install.","Each",28,null,{"$f":"D998*E998","v":0}]
[]
[null,"SMALL POWER"]
[]
[null,"16A Single Socket Outlet and cover, Crabtree Classic:"]
[]
[41,"Supply.","Each",38,null,{"$f":"D1004*E1004","v":0}]
[]
[42,"Install.","Each",38,null,{"$f":"D1006*E1006","v":0}]
[]
[null,"16A Single Lever One Way Light Switch and cover, Crabtree Classic:"]
[]
[43,"Supply.","Each",23,null,{"$f":"D1010*E1010","v":0}]
[]
[44,"Install.","Each",23,null,{"$f":"D1012*E1012","v":0}]
[]
[null,"16A Single Lever Two Way Light Switch and cover, Crabtree Classic:"]
[]
[45,"Supply.","Each",3,null,{"$f":"D1016*E1016","v":0}]
[]
[46,"Install.","Each",3,null,{"$f":"D1018*E1018","v":0}]
[]
[null,"10A Electric Photocell (Day / Night Switch):"]
[]
[47,"Supply.","Each",2,null,{"$f":"D1022*E1022","v":0}]
[]
[48,"Install.","Each",2,null,{"$f":"D1024*E1024","v":0}]
[]
[null,"Surface 300 x 300 Telkom Junction Box Complete with backing Board."]
[]
[49,"Supply.","Each",2,null,{"$f":"D1028*E1028","v":0}]
[]
[50,"Install.","Each",2,null,{"$f":"D1030*E1030","v":0}]
[]
[null,"TRUNKING AND ACCESSORIES"]
[]
[null,"Galvanised steel wiring trunking complete with all accessories, metal cover plates, and as indicated on drawings, suspended from slab or steel structure, excluding conduit work and wiring. Supports to include all:"]
[]
[null,"Cabstrut P8200 steel Trunking per meter:"]
[]
[51,"Supply.","m",155,null,{"$f":"D1038*E1038","v":0}]
[]
[52,"Install.","m",155,null,{"$f":"D1040*E1040","v":0}]
[]
[null,"T-pieces:"]
[]
[53,"Supply.","Each ",3,null,{"$f":"D1044*E1044","v":0}]
[]
[54,"Install.","Each ",3,null,{"$f":"D1046*E1046","v":0}]
[]
[null,"Bends:"]
[]
[55,"Supply.","Each ",6,null,{"$f":"D1050*E1050","v":0}]
[]
[56,"Install.","Each ",6,null,{"$f":"D1052*E1052","v":0}]
[]
[null,"End caps:"]
[]
[57,"Supply.","Each ",6,null,{"$f":"D1056*E1056","v":0}]
[]
[58,"Install.","Each ",6,null,{"$f":"D1058*E1058","v":0}]
[]
[null,"ELECTRONIC SIREN / BELL"]
[]
[null,"Micro Sound Bell and Siren Motorised 230Vac 116db:"]
[]
[59,"Supply.","Each ",1,null,{"$f":"D1064*E1064","v":0}]
[]
[60,"Install.","Each ",1,null,{"$f":"D1066*E1066","v":0}]
[]
[null,"Timer Switch:"]
[]
[61,"Supply.","Each ",1,null,{"$f":"D1070*E1070","v":0}]
[]
[62,"Install.","Each ",1,null,{"$f":"D1072*E1072","v":0}]
[]
[null,"Power Supply:"]
[]
[63,"Supply.","Each ",1,null,{"$f":"D1076*E1076","v":0}]
[]
[64,"Install.","Each ",1,null,{"$f":"D1078*E1078","v":0}]
[]
[null,"16 Core Mylar Cable:"]
[]
[65,"Supply.","Each ",15,null,{"$f":"D1082*E1082","v":0}]
[]
[66,"Install.","Each ",15,null,{"$f":"D1084*E1084","v":0}]
[]
[null,"LIGHTNING PROTECTION AND ACCESSORIES"]
[]
[67,"1.5m Earth rods installed to 2.0 depth.","No",20,null,{"$f":"D1088*E1088","v":0}]
[]
[68,"35mm² PVC copper wire as earth tails from earth rods to inspection boxes.","m",20,null,{"$f":"D1090*E1090","v":0}]
[]
[69,"20mm Galvanized conduit incl. 20mm galvanized spacer saddles fixed surface.","m",60,null,{"$f":"D1092*E1092","v":0}]
[]
[70,"J1 York inspection boxes complete with 20mm galvanized male adaptors fixed surface.","No",20,null,{"$f":"D1094*E1094","v":0}]
[]
[71,"35mm² PVC copper wire as down conductor drawn into 20mm galvanized conduit.","m",60,null,{"$f":"D1096*E1096","v":0}]
[]
[72,"Terminations in inspection boxes.","No",20,null,{"$f":"D1098*E1098","v":0}]
[]
[73,"Terminations to metallic roof sheets.","No",20,null,{"$f":"D1100*E1100","v":0}]
[]
[74,"Terminations to metal gutters and RWDP.","No",20,null,{"$f":"D1102*E1102","v":0}]
[]
[75,"Test completed system & issue certificates.","No",3,null,{"$f":"D1104*E1104","v":0}]
[]
[76,"Soil resistivity survey.","SUM",3,null,{"$f":"D1106*E1106","v":0}]
[]
[null,"Total for Section 2: Bill No. 15",{"$nulls":3},{"$f":"SUM(F862:F1107)","v":0}]
[]
[null,"SECTION 3"]
[null,"BILL NO.1 : EXTERNAL WORKS (PROVISIONAL)"]
[]
[null,"The Tenderer is referred to the relevant Clauses in the Standard Preambles to All Trades and to the Supplementary Preambles which are incorporated in these Bills of Quantities."]
[]
[null,"When Pricing this Section, The Tenderer is referred to the relevant Clauses in the Supplementary Preambles, as stated in previous Sections of these Bills of Quantities."]
[]
[null,"Block Notation"]
[]
[null,"Note: For the purpose of tendering only the total quantity shall be used in calculating the amount for inclusion in the tender at the tendered rates.\nBlock A : Admin Block and Classrooms\nBlock B : 7 Classroom Block\nBlock C :7 Classroom Block\nBlock D : Guard house                            "]
[]
[null,"SITE CLEARANCE, etc."]
[]
[null,"Site clearance, etc.:"]
[]
[1,"Allow for clearing the area of the site to be built upon of all grass, weeds, shrubs, trees with trunks not exceeding 200mm girth, debris, etc., including grubbing up all roots, scuffling up as required and cart away all vegetation and debris.","m2",62,null,{"$f":"D1125*E1125","v":0}]
[]
[null,"EARTH BERMS "]
[]
[null,"EXCAVATIONS etc. "]
[]
[null,"Digging up topsoil:"]
[]
[2,"Stripping average 150mm thick layer of top soil and stockpiling on site.","m2",96,null,{"$f":"D1133*E1133","v":0}]
[]
[null,"FILLING etc. "]
[]
[null,"Earth filling obtained from excavations (not compacted):"]
[]
[3,"In berms etc.","m3",23,null,{"$f":"D1139*E1139","v":0}]
[]
[null,"WATER TANKS AND SUPPORT"]
[]
[null,"Polyethylene water storage tanks:"]
[]
[4,"2500L low profile circular tank size 1420mm diameter, with access lid and inlet hole, embedded in pedestal to a minimum of 400mm above ground level and tied down with 4No. of 4mm galvanised wired ties tied to 4No. mild steel M8 eye bolt of which is to be drilled and fixed to the 4 corners of concrete supporting base. Water tank to include overflow pipe inclusive of all bends and fixings to be installed.","No",13,null,{"$f":"D1145*E1145","v":0}]
[]
[5,"20mm PVC ball valve tap.","No",13,null,{"$f":"D1147*E1147","v":0}]
[]
[null,"PLINTH"]
[]
[null,"NOTE: Unless otherwise stated herein, all items in this Bill shall be deemed to fall into Work Group No. 104 for Calculation of Contract Price Adjustment on the Haylett Formula. "]
[]
[null,"Excavation in earth not exceeding 2m deep from the reduced level:"]
[]
[6,"Trenches.","m3",21,null,{"$f":"D1155*E1155","v":0}]
[]
[null,"Extra over excavation in earth for excavation in:"]
[]
[7,"Soft rock material.","m3",3,null,{"$f":"D1159*E1159","v":0}]
[]
[8,"Hard rock material.","m3",3,null,{"$f":"D1161*E1161","v":0}]
[]
[null,"Extra over all excavations for carting away:"]
[]
[9,"Surplus material from excavations and/or stock piles on site to a dumping site to be located by the Contractor.","m3",6,null,{"$f":"D1165*E1165","v":0}]
[]
[null,"Risk of collapse of excavation:"]
[]
[10,"Sides of trench and hole excavations not exceeding 1,5m deep.","m2",20,null,{"$f":"D1169*E1169","v":0}]
[]
[null,"Keeping excavation free of water:"]
[]
[11,"Keeping excavation free from mud, water and all other than from subterranean sources.","Item",1,null,{"$f":"D1173*E1173","v":0}]
[]
[null,"Earth filling supplied by the Contractor and brought to site and compacted to 95% Mod AASHTO density:"]
[]
[12,"G7 material under floors.","m3",6,null,{"$f":"D1177*E1177","v":0}]
[]
[13,"50mm  River sand blinding.","m3",4,null,{"$f":"D1179*E1179","v":0}]
[]
[null,"SOIL POISONING"]
[]
[null,"Approved brand of anti-termite soil poison applied by a Registered Pest Control company and guaranteed against termite infestation for ten years:"]
[]
[14,"To bottom and sides of trenches.","m2",24,null,{"$f":"D1185*E1185","v":0}]
[]
[null,"20MPa/19mm Unreinforced concrete:"]
[]
[15,"Strip footings.","m3",5,null,{"$f":"D1189*E1189","v":0}]
[]
[null,"30MPa/19mm Reinforced concrete:"]
[]
[16,"Surface bed.","m3",2,null,{"$f":"D1193*E1193","v":0}]
[]
[null,"Test blocks:"]
[]
[17,"Allow for all necessary concrete test cubes size 150 x 150 x 150mm cast from batches of concrete set of three, made, stored, cured and tested in accordance with SANS 2001-CC1, including use of approved cube moulds, transporting to an approved testing laboratory for testing, paying all charges and submitting reports to the Structural Engineer.","Sets",10,null,{"$f":"D1197*E1197","v":0}]
[]
[null,"NOTE:  Unless otherwise stated herein, all items in this Bill shall be deemed to fall into Work Group No. 111 for Calculation of Contract Price Adjustments on the Haylett Formula."]
[]
[null,"Unformed finishes Class U2 - wood float finish:"]
[]
[18,"On surface beds.","m2",16,null,{"$f":"D1203*E1203","v":0}]
[]
[null,"Formwork Class F1 - ordinary finish:"]
[]
[19,"Edges, risers, ends and reveals not exceeding 300mm high or wide.","m",36,null,{"$f":"D1207*E1207","v":0}]
[]
[null,"Slip joints between horizontal concrete and brick surfaces with two layers of 3 ply malthoid:"]
[]
[20,"Not exceeding 300mm wide.","m",36,null,{"$f":"D1211*E1211","v":0}]
[]
[null,"Thioflex 600 poly sulphide sealing compound including backing strip, bond breaker, primer, etc.:"]
[]
[21,"12mm Isolation joints between floors and brickwork including raking out joint filler as necessary.","m",36,null,{"$f":"D1215*E1215","v":0}]
[]
[null,"NOTE: Unless otherwise stated herein, all items in this Bill shall be deemed to fall into Work Group No. 114 for Calculation of Contract Price Adjustments on the Haylett Formula."]
[]
[null,"Fabric Reinforcement:"]
[]
[22,"Type 193 fabric reinforcement in surface beds, rib and block slabs, etc.","m2",16,null,{"$f":"D1221*E1221","v":0}]
[]
[null,"NOTE: Unless otherwise stated herein, all items in this Bill shall be deemed to fall into Work Group No. 116 for Calculation of Contract Price Adjustments on the Haylett Formula."]
[]
[null,"Brickwork of NFX bricks (14 MPa nominal compressive strength) in class II mortar:"]
[]
[23,"One brick walls including wire ties (7 per square metre - laid staggered).","m2",5,null,{"$f":"D1227*E1227","v":0}]
[]
[null,"Brickwork of NFP bricks (14 MPa nominal compressive strength) in class II mortar:"]
[]
[24,"One brick walls including wire ties (7 per square metre - laid staggered).","m2",3,null,{"$f":"D1231*E1231","v":0}]
[]
[null,"Corobrik® (Lawley-Gauteng) 20-30 MPa Montana Travertine FSB clay face brick, bedded and jointed in Class II mortar and pointed with flush vertical and flush horizontal joints and perpends, suitable for exposure zones 1-2:"]
[]
[25,"Extra over NFX brickwork for face brickwork in foundations (provisional).","m2",5,null,{"$f":"D1235*E1235","v":0}]
[]
[26,"Extra over NFP brickwork for face brickwork.","m2",3,null,{"$f":"D1237*E1237","v":0}]
[]
[null,"NOTE: Unless otherwise stated herein, all items in this bill shall be deemed to fall into Work Group No. 142 for Haylett formula purposes."]
[]
[null,"Cement screed around tank:"]
[]
[27,"Cement screed around tank average 40mm thick and laid to falls.","m2",16,null,{"$f":"D1243*E1243","v":0}]
[]
[null,"LINED STORM WATER DRAINAGE"]
[]
[null,"20Mpa Reinforced concrete 'V' drains with 19mm aggregate:"]
[]
[28,"V-shaped concrete channel 1m wide and 75mm thick concrete lining with wood float finish on exposed surfaces, laid to falls in panels not exceeding 1.8m in length, with 12mm soft board movement joints including all excavation, cart away and form work as per drawing.","m",298,null,{"$f":"D1249*E1249","v":0}]
[]
[29,"Concrete energy dissipators: 100mm thick concrete with embedded stones.","m2",12,null,{"$f":"D1251*E1251","v":0}]
[]
[null,"Total for Section 3: Bill No. 1",{"$nulls":3},{"$f":"SUM(F1125:F1251)","v":0}]
[]
[null,"SUMMARY:"]
[]
[null,"SECTION 1: "]
[null,"BILL NO. 1 : PRELIMINARIES AND GENERAL (PROVISIONAL)",{"$nulls":3},{"$f":"F14","v":0}]
[]
[null,"SECTION 2:"]
[null,"BILL NO. 1 : ALTERATIONS",{"$nulls":3},{"$f":"F186","v":0}]
[]
[null,"BILL NO. 2 : EARTHWORKS",{"$nulls":3},{"$f":"F260","v":0}]
[]
[null,"BILL NO. 3 : CONCRETE, FORMWORK AND REINFORCEMENT",{"$nulls":3},{"$f":"F336","v":0}]
[]
[null,"BILL NO. 4 : MASONRY",{"$nulls":3},{"$f":"F392","v":0}]
[]
[null,{"$f":"B394","v":"BILL NO. 5 : WATERPROOFING"},{"$nulls":3},{"$f":"F412","v":0}]
[]
[null,"BILL NO. 6 : ROOF COVERINGS ",{"$nulls":3},{"$f":"F462","v":0}]
[]
[null,"BILL NO. 7 : CARPENTRY AND JOINERY",{"$nulls":3},{"$f":"F554","v":0}]
[]
[null,"BILL NO. 8 : CEILINGS, PARTITIONS AND ACCESS FLOORING",{"$nulls":3},{"$f":"F580","v":0}]
[]
[null,"BILL NO. 9 : IRONMONGERY",{"$nulls":3},{"$f":"F638","v":{"v":130000,"d":"R130,000.00"}}]
[]
[null,"BILL NO. 10: METALWORK",{"$nulls":3},{"$f":"F678","v":0}]
[]
[null,"BILL NO. 11 : PLASTERING",{"$nulls":3},{"$f":"F712","v":0}]
[]
[null,"BILL NO. 12 : PLUMBING AND DRAINAGE",{"$nulls":3},{"$f":"F766","v":0}]
[]
[null,"BILL NO. 13 : GLAZING",{"$nulls":3},{"$f":"F792","v":0}]
[]
[null,"BILL NO. 14 : PAINTWORK",{"$nulls":3},{"$f":"F852","v":0}]
[]
[null,"BILL NO. 15 : ELECTRICAL WORKS",{"$nulls":3},{"$f":"F1108","v":0}]
[]
[null,"SECTION 3:"]
[null,"BILL NO. 1 : EXTERNAL WORKS (PROVISIONAL)",{"$nulls":3},{"$f":"F1253","v":0}]
[]
[]
["TOTAL SECTION NO.1: PRELIMINARIES AND GENERAL",{"$nulls":4},{"$f":"F1258","v":0}]
[]
["TOTAL SECTION NO.2: BUILDERS WORK",{"$nulls":4},{"$f":"SUM(F1261:F1289)","v":{"v":130000,"d":"R130,000.00"}}]
[]
["TOTAL SECTION NO.3: EXTERNAL WORKS",{"$nulls":4},{"$f":"F1292","v":0}]
[]
["SUBTOTAL",{"$nulls":4},{"$f":"SUM(F1295:F1300)","v":{"v":130000,"d":"R130,000.00"}}]
[]
["Value Added Tax (15%)",{"$nulls":4},{"$f":"F1301*0.15","v":{"v":19500,"d":"R19,500.00"}}]
[]
["TOTAL PROJECT COST:  Carried forward to T2.22.",{"$nulls":4},{"$f":"F1303+F1301","v":{"v":149500,"d":"R149,500.00"}}]